{"text_format":"3","workbook":"xlsx","n_sheets":3,"sheets":["GV-SL","Translation","Selections"],"not_rendered":{"images":5,"defined_names":1},"read":"whole","date_system":"1900"}

{"sheet":"GV-SL","index":0,"n_rows":67,"n_cols":29,"rows_kept":67,"merged":[[1,9,2,9],[1,18,2,18],[1,25,2,25],[2,10,3,11],[3,3,4,3],[3,9,4,9],[3,18,4,18],[3,25,4,25],[5,9,6,10],[5,18,6,18],[5,25,6,25],[7,9,8,9],[7,18,8,18],[7,25,8,25],[10,0,11,1],[10,5,11,5],[11,7,12,7],[12,8,13,8],[13,5,14,5],[14,12,15,13],[20,2,21,2],[22,20,24,26],[27,18,27,19],[27,20,28,20],[27,21,28,21],[27,22,27,23],[27,24,27,25],[28,11,43,11],[29,6,39,6],[29,20,35,20],[29,21,35,21],[29,22,35,22],[29,23,35,23],[29,24,35,24],[29,25,35,25],[30,16,36,16],[32,12,43,12],[32,15,36,15],[39,18,39,19],[39,20,40,20],[39,21,40,21],[39,22,39,23],[39,24,39,25],[41,20,47,20],[41,21,47,21],[41,22,47,22],[41,23,47,23],[41,24,47,24],[41,25,47,25],[50,18,50,28],[51,18,51,19],[51,20,51,22],[51,23,51,25],[51,26,51,28],[53,20,56,20],[53,21,54,21],[53,22,57,22],[53,23,59,24],[53,25,57,25],[53,26,56,26],[53,27,54,27],[53,28,57,28],[55,21,59,21],[55,27,59,27],[57,20,59,20],[57,26,59,26],[58,22,59,22],[58,25,59,25],[58,28,59,28],[61,24,61,28],[62,24,64,28]]}
[]
["Zvolte jazyk",{"$nulls":7},{"$f":"Translation!G37","v":"Opening width (W) [mm]"},{"$nulls":8},{"$f":"Translation!G13","v":"Back room (D) [mm]"},{"$f":"IF(OR(J4=\"\",S8=\"\"),\"\",IF(S8=Selections!T72,J4+230,IF(S8=Selections!T73,J4+230,\"Error\")))","v":""},{"$nulls":5},{"$f":"Translation!G43","v":"Type of motor"}]
["Select a language",{"$nulls":9},{"$f":"IF(J2/1000*J4/1000<14,\"\",\"W x H max. 14m2\")","v":""}]
["Wählen Sie eine Sprache:",null,null,"EN",{"$nulls":4},{"$f":"Translation!G27","v":"Clear opening height (H) [mm]"},{"$nulls":8},{"$f":"Translation!G17","v":"Bottom edge of horizontal tracks (K) [mm]"},{"$f":"IF(OR(J4=\"\",S8=\"\"),\"\",IF(S8=Selections!T72,J4+100,IF(S8=Selections!T73,J4+190,\"Error\")))","v":""},{"$nulls":5},{"$f":"Translation!G15","v":"Length of motor (X) [mm]"},{"$f":"IF(OR(Z2=\"\",J4=\"\"),\"\",IF(Z2=Selections!K72,VLOOKUP(J4,Selections!K73:L74,2,TRUE),IF(Z2=Selections!K76,VLOOKUP(J4,Selections!K77:L78,2,TRUE),IF(Z2=Selections!K80,VLOOKUP(J4,Selections!K81:L82,2,TRUE),\"Error\"))))","v":""}]
["Wybierz język:"]
["Sélectionner une langue:",{"$nulls":7},{"$f":"Translation!G38","v":"Operated"},{"$nulls":8},{"$f":"Translation!G11","v":"Bottom edge of fully open door (CPH) [mm]"},{"$f":"IF(J4=\"\",\"\",J4)","v":""},{"$nulls":5},{"$f":"Translation!G19","v":"Hanging point for motor track (E1) [mm]"},{"$f":"IF(OR(Z2=\"\",J4=\"\"),\"\",IF(Z2=Selections!Q72,VLOOKUP(J4,Selections!Q73:R74,2,TRUE),IF(Z2=Selections!Q76,VLOOKUP(J4,Selections!Q77:R78,2,TRUE),IF(Z2=Selections!Q80,VLOOKUP(J4,Selections!Q81:R82,2,TRUE),\"Error\"))))","v":""}]
["Kies een taal:"]
[{"$nulls":8},{"$f":"Translation!G42","v":"Height of lintel (F) [mm]"},{"$nulls":8},{"$f":"Translation!G48","v":"Version of SL track system"},{"$nulls":6},{"$f":"Translation!G21","v":"Hanging point for motor (E2) [mm]"},{"$f":"IF(OR(Z2=\"\",J4=\"\"),\"\",IF(Z2=Selections!N72,VLOOKUP(J4,Selections!N73:O74,2,TRUE),IF(Z2=Selections!N76,VLOOKUP(J4,Selections!N77:O78,2,TRUE),IF(Z2=Selections!N80,VLOOKUP(J4,Selections!N81:O82,2,TRUE),\"Error\"))))","v":""}]
[]
[{"$nulls":19},"W",{"$f":"Translation!G36","v":"Opening width [mm]"}]
["   Z",{"$nulls":4},{"$f":"IF(OR(J4=\"\",Z2=\"\"),\"X\",\"X = \"&Z4)","v":"X"},{"$nulls":13},"H",{"$f":"Translation!G26","v":"Clear opening height [mm]"}]
[{"$nulls":7},{"$f":"IF(OR(J4=\"\",Z2=\"\"),\"E2\",\"E2 = \"&Z8)","v":"E2"},{"$nulls":11},"D",{"$f":"Translation!G12","v":"Back room [mm]"}]
[{"$nulls":8},{"$f":"IF(OR(J4=\"\",S2=\"\"),\"D\",\"D = \"&S2)","v":"D"},{"$nulls":10},"K",{"$f":"Translation!G16","v":"Bottom edge of horizontal tracks [mm]"}]
[{"$nulls":5},"Y1 = 400",{"$nulls":13},"F",{"$f":"Translation!G41","v":"Height of lintel [mm]"}]
[{"$nulls":12},{"$f":"IF(OR(J2=\"\",J4=\"\"),\"Y2, E1\",IF(OR(J2>3000,J4>2500),\"Y2 = E1 = 1400\",\"E1 = 1400\"))","v":"Y2, E1"},{"$nulls":6},"CEL",{"$f":"Translation!G8","v":"Height of ceiling [mm]"}]
[{"$nulls":19},"CPH*",{"$f":"Translation!G10","v":"Bottom edge of fully open door [mm]"}]
[{"$nulls":19},"Y1",{"$f":"Translation!G22","v":"Hanging point"}]
[{"$nulls":19},"Y2",{"$f":"Translation!G23","v":"Hanging point (W>3000 or H>2500)"}]
[{"$nulls":19},"X",{"$f":"Translation!G14","v":"Length of motor [mm]"}]
[{"$nulls":4},255,{"$nulls":14},"E1",{"$f":"Translation!G18","v":"Hanging point for motor track [mm]"}]
[{"$nulls":19},"E2",{"$f":"Translation!G20","v":"Hanging point for motor [mm]"}]
[{"$nulls":19},"Z",{"$f":"Translation!G33","v":"Position of socket, ca. 250 mm"}]
[{"$nulls":19},"*1",{"$f":"Translation!G50","v":"clear height could be decreased by accessories installed on inner side of door leaf (handgrip, reinforcing strut etc.)"}]
[null,null,{"$f":"Translation!G34","v":"CEE 7/3 or CEE 7/5 socket"},{"$nulls":12},"H"]
[null,null,{"$f":"Translation!G35","v":"230V, 50Hz, protect by 6 A (10 A) circuit breaker"}]
[]
[{"$nulls":12},470,{"$nulls":5},{"$f":"Selections!T72","v":"SL 350"}]
[{"$nulls":18},"H",null,"D","K",{"$f":"Translation!G6","v":"Manually operated"},null,{"$f":"Translation!G7","v":"Electric. operated"}]
[{"$nulls":11},{"$f":"IF(OR(J4=\"\",S8=\"\"),\"SL 350: K = H + 100 / SL 420: K = H + 190\",\"K = \"&S4)","v":"SL 350: K = H + 100 / SL 420: K = H + 190"},{"$nulls":6},">","<=",null,null,"min. CEL","CPH*1",{"$f":"W29","v":"min. CEL"},"CPH*1"]
[{"$nulls":6},{"$f":"IF(OR(J4=\"\",S8=\"\"),\"SL 350: H + 50 / SL 420: H + 140\",S4-50)","v":"SL 350: H + 50 / SL 420: H + 140"},{"$nulls":12},2000,"H + 230","H + 100","H + 350","H","H + 350","H"]
[{"$nulls":16},{"$f":"IF(OR(J4=\"\",J8=\"\"),\"CEL = min. H + 350\",\"CEL = \"&J4+J8)","v":"CEL = min. H + 350"},null,{"$f":"T30+1","v":2001},2125]
[{"$nulls":18},{"$f":"T31+1","v":2126},2250]
[{"$nulls":12},{"$f":"IF(OR(J4=\"\",S8=\"\"),\"SL 350: H - 190 / SL 420: H - 100\",S4-290)","v":"SL 350: H - 190 / SL 420: H - 100"},null,null,{"$f":"IF(J4=\"\",\"CPH\",\"CPH = \"&S6)","v":"CPH"},null,null,2251,2375]
[{"$nulls":18},2376,2500]
[{"$nulls":18},2501,2750]
[{"$nulls":18},2751,3000]
[]
[]
[{"$nulls":18},{"$f":"Selections!T73","v":"SL 420"}]
[{"$nulls":18},"H",null,"D","K",{"$f":"Translation!G6","v":"Manually operated"},null,{"$f":"Translation!G7","v":"Electric. operated"}]
[{"$nulls":18},">","<=",null,null,"min. CEL","CPH*1",{"$f":"W41","v":"min. CEL"},"CPH*1"]
[{"$nulls":19},2000,"H + 230","H + 190","H + 420","H","H + 420","H"]
[{"$nulls":18},{"$f":"T42+1","v":2001},2125]
[{"$nulls":18},{"$f":"T43+1","v":2126},2250]
[{"$nulls":18},2251,2375]
[{"$nulls":18},2376,2500]
[{"$nulls":18},2501,2750]
[{"$nulls":13},250,{"$nulls":4},2751,3000]
[]
[]
[{"$nulls":18},{"$f":"Translation!C44","v":0}]
[{"$nulls":18},"H",null,"X",null,null,"E1",null,null,"E2"]
[null,{"$f":"Translation!G52","v":"Min. load capacity of ceiling/max. weight per hanging point: 100 kg"},{"$nulls":16},">","<=","Black","RUN 600","Cube",{"$f":"U53","v":"Black"},{"$f":"V53","v":"RUN 600"},"Cube",{"$f":"X53","v":"Black"},{"$f":"Y53","v":"RUN 600"},"Cube"]
[{"$nulls":19},2000,3540,3100,{"$f":"Selections!L81","v":3680},1400,null,{"$f":"Selections!R81","v":1800},3265,2950,{"$f":"Selections!O81","v":3480}]
[null,">=125",{"$nulls":4},"W",{"$nulls":3},"  >=125",{"$nulls":7},{"$f":"T54+1","v":2001},2125]
[{"$nulls":18},{"$f":"T55+1","v":2126},2250,null,{"$f":"U58","v":4240},{"$nulls":5},4060]
[{"$nulls":18},2251,2375]
[{"$nulls":18},2376,2500,4240,{"$nulls":5},3975]
[{"$nulls":18},2501,2750,null,null,{"$f":"Selections!L82","v":4160},null,null,{"$f":"Selections!R82","v":2050},null,null,{"$f":"Selections!O82","v":3960}]
[{"$nulls":18},2751,3000]
[]
[{"$nulls":14},48,{"$nulls":8},"http://door-documents.com/en/guardy-installation-drawing-sl","http://door-documents.com/en/guardy-installation-drawing-sl"]
[{"$nulls":24},"Guardy SL"]
[]
[]
[{"$nulls":27},{"$f":"Translation!G31","v":"Version:"},{"$f":"Translation!G32","v":"Sheet:"}]
[{"$nulls":25},2415,null,2415,"A4"]

{"sheet":"Translation","index":1,"n_rows":54,"n_cols":16,"rows_kept":54,"hidden":true}
[{"$nulls":6},"SL"]
[{"$nulls":6},{"$f":"IF(ISERROR(VLOOKUP('GV-SL'!D4,Selections!A1:B12,2,FALSE))=TRUE,\"Translation not available\",VLOOKUP('GV-SL'!D4,Selections!A1:B12,2,FALSE))","v":2},null,"CZ","EN","DE","PL","FR","NL","ET","FI"]
[{"$nulls":6},{"$f":"VLOOKUP($I3,$I:$T,G$2,FALSE)","v":"General"},null,"Obecná","General","Allgemeine","Ogólna ","Hauteur","Algemene","Üldine","Yleinen"]
[{"$nulls":6},"height [mm]",null,"výška [mm]","height [mm]","Höhe [mm]","wysokość [mm]","Générale [mm]","hoogte [mm]","kõrgus [mm]","Korkeus [mm]"]
[{"$nulls":6},"Min. height of ceiling [mm]",null,"Min. výška stropu [mm]","Min. height of ceiling [mm]","Min. Deckenhöhe [mm]","Min wysokość stropu [mm]","Hauteur minimale du plafond [mm]","Min. plafondhoogte [mm]","Min. lae kõrgus [mm]","Min. katon korkeus [mm]"]
[{"$nulls":6},"Manually operated",null,"Vrata bez motoru","Manually operated","Tor ohne Motor","Brama bez napędu","Porte sans moteur","Deur zonder motor","Käsitsi juhitav","Käsikäyttöinen"]
[{"$nulls":6},"Electric. operated",null,"Vrata s motorem","Electric. operated","Tor mit Motor","Brama z napędem","Porte avec moteur","Garaged. met motor","Elektriliselt juhitav","Sähkökäyttöinen"]
[{"$nulls":6},"Height of ceiling [mm]",null,"Výška stropu [mm]","Height of ceiling [mm]","Deckenhöhe [mm]","Wysokość stropu [mm]","Hauteur du plafond [mm]","Plafondhoogte [mm]","Lae kõrgus [mm]","Katon korkeus [mm]"]
[{"$nulls":6},"Height to bottom edge of lintel profile [mm]",null,"Výška ke spodní hraně překladového profilu [mm]","Height to bottom edge of lintel profile [mm]","Höhe zur unteren Kante des Sturzprofiles [mm]","Wysokość do dolnej krawędzi profilu nadproża [mm]","Hauteur jusqu'à l'arête inférieure du profilé de linteau [mm]","Hoogte vanaf de onderrand van het dwarsbalkprofiel [mm]","Kõrgus silluse profiili alumise servani [mm]","Korkeus kamanaprofiilin alareunaan [mm]"]
[{"$nulls":6},"Bottom edge of fully open door [mm]",null,"Spodní hrana plně otevřených vrat [mm]","Bottom edge of fully open door [mm]","Untere Kante des vollständig geöffneten Tors [mm]","Dolna krawędź w pełni otwartej bramy [mm]","Arête inférieure de la porte toute ouverte [mm]","Onderste rand van een volledig geopende deur [mm]","Täielikult avatud ukse alumine serv [mm]","Täysin auki olevan oven alareunan korkeus [mm]"]
[{"$nulls":6},"Bottom edge of fully open door (CPH) [mm]",null,"Spodní hrana plně otevřených vrat (CPH) [mm]","Bottom edge of fully open door (CPH) [mm]","Untere Kante des vollständig geöffneten Tors (CPH) [mm]","Dolna krawędź w pełni otwartej bramy (CPH) [mm]","Arête inférieure de la porte toute ouverte (CPH) [mm]","Onderste rand van een volledig geopende deur (CPH) [mm]","Täielikult avatud ukse alumine serv (CPH) [mm]","Täysin auki olevan oven alareunan korkeus (CPH) [mm]"]
[{"$nulls":6},"Back room [mm]",null,"Hloubka vedení [mm]","Back room [mm]","Führungstiefe [mm]","Głębokość prowadzenia [mm]","Profondeur du guidage [mm]","Inbouwdiepte van de rails [mm]","Tagaruum [mm]","Syvyystila [mm]"]
[{"$nulls":6},"Back room (D) [mm]",null,"Hloubka vedení (D) [mm]","Back room (D) [mm]","Führungstiefe (D) [mm]","Głębokość prowadzenia (D) [mm]","Profondeur du guidage (D) [mm]","Diepte van de geleidingsrail (D) [mm]","Tagaruum (D) [mm]","Syvyystila (D) [mm]"]
[{"$nulls":6},"Length of motor [mm]",null,"Délka pohonu [mm]","Length of motor [mm]","Antriebslänge [mm]","Długość napędu [mm]","Longueur de la propulsion [mm]","Inbouwdiepte incl. de aandrijving [mm]","Mootori pikkus [mm]","Avaajan kokonaispituus [mm]"]
[{"$nulls":6},"Length of motor (X) [mm]",null,"Délka pohonu (X) [mm]","Length of motor (X) [mm]","Antriebslänge (X) [mm]","Długość napędu (X) [mm]","Longueur de la propulsion (X) [mm]","Inbouwdiepte incl. de aandrijving (X) [mm]","Mootori pikkus (X) [mm]","Avaajan kokonaispituus (X) [mm]"]
[{"$nulls":6},"Bottom edge of horizontal tracks [mm]",null,"Spodní hrana horizontálního vedení [mm]","Bottom edge of horizontal tracks [mm]","Untere Kante der Horizontalführung [mm]","Dolna krawędź prowadzenia poziomego [mm]","Arête inférieure du guidage horizontale [mm]","Onderste rand van de horizontale rails [mm]","Horisontaalsete siinide alumine serv [mm]","Vaakajohteiden alareuna  [mm]"]
[{"$nulls":6},"Bottom edge of horizontal tracks (K) [mm]",null,"Spodní hrana horizontálního vedení (K) [mm]","Bottom edge of horizontal tracks (K) [mm]","Untere Kante der Horizontalführung (K) [mm]","Dolna krawędź prowadzenia poziomego (K) [mm]","Arête inférieure du guidage horizontale (K) [mm]","Onderste rand van de horizontale rails (K) [mm]","Horisontaalsete siinde alumine serv (K) [mm]","Vaakajohteiden alareuna (K) [mm]"]
[{"$nulls":6},"Hanging point for motor track [mm]",null,"Kotvící bod lišty pohonu [mm]","Hanging point for motor track [mm]","Verankerungspunkt der Antriebsleiste [mm]","Punkt uchwycenia szyny napędu [mm]","Point d'ancrage de la glissière de propulsion [mm]","Bevestigingspunt van de motorgeleidingsrail [mm]","Mootorisiini riputuspunkt [mm]","Avaajan kiskon ripustuspiste [mm]"]
[{"$nulls":6},{"$f":"VLOOKUP($I19,$I:$T,G$2,FALSE)","v":"Hanging point for motor track (E1) [mm]"},null,"Kotvící bod lišty pohonu (E1) [mm]","Hanging point for motor track (E1) [mm]","Verankerungspunkt der Antriebsleiste (E1) [mm]","Punkt uchwycenia szyny napędu (E1) [mm]","Point d'ancrage de la glissière de propulsion (E1) [mm]","Bevestigingspunt van de motorgeleidingsrail (E1) [mm]","Mootorisiini riputuspunkt (E1) [mm]","Avaajan kiskon ripustuspiste (E1) [mm]"]
[{"$nulls":6},"Hanging point for motor [mm]",null,"Kotvící bod pohonu [mm]","Hanging point for motor [mm]","Verankerungspunkt des Antriebes [mm]","Punkt uchwycenia napędu [mm]","Point d'ancrage de la propulsion [mm]","Bevestigingspunt van de aandrijvingsgeleidingsbalk [mm]","Mootori riputuspunkt [mm]","Avaajan ripustuspiste [mm]"]
[{"$nulls":6},"Hanging point for motor (E2) [mm]",null,"Kotvící bod pohonu (E2) [mm]","Hanging point for motor (E2) [mm]","Verankerungspunkt des Antriebes (E2) [mm]","Punkt uchwycenia napędu (E2) [mm]","Point d'ancrage de la propulsion (E2) [mm]","Bevestigingsp. van de aandrijvingsgeleidingsbalk (E2) [mm]","Mootori riputuspunkt (E2) [mm]","Avaajan ripustuspiste (E2) [mm]"]
[{"$nulls":6},"Hanging point",null,"Kotvící bod","Hanging point","Verankerungspunkt","Punkt uchwycenia","Point d'ancrage","Bevestigingspunt","Riputuspunkt","Ripustuspiste"]
[{"$nulls":6},"Hanging point (W>3000 or H>2500)",null,"Kotvící bod (W>3000 nebo H>2500)","Hanging point (W>3000 or H>2500)","Verankerungspunkt (W>3000 oder H>2500)","Punkt uchwycenia (W>3000 lub H>2500)","Point d'ancrage (W>3000 ou H>2500)","Bevestigingspunt (W>3000 of H>2500)","Riputuspunkt (W>3000 või H>2500)","Ripustuspiste (W>3000 või H>2500)"]
[{"$nulls":6},"Standard installation",null,"Standardní montáž","Standard installation","Standardmontage","Instalacja standardowa","Assemblage standard","Standaardmontage","Standard paigaldus","Tavallinen asennusmenetelmä"]
[{"$nulls":6},"Alternative installation",null,"Alternativní montáž","Alternative installation","Alternative Montage","Instalacja alternatywna","Assemblage alternatif ","Alternatieve montage","Alternatiivne paigaldus","Vaihtoehtoinen asennusmenetelmä"]
[{"$nulls":6},"Clear opening height [mm]",null,"Výška stavebního otvoru [mm]","Clear opening height [mm]","Höhe der Bauöffnung [mm]","Wysokość otworu budowlanego [mm]","Hauteur de la baie de construction [mm]","Dagmaat hoogte [mm]","Puhas avanemiskõrgus [mm]","Oviaukon korkeus [mm]"]
[{"$nulls":6},"Clear opening height (H) [mm]",null,"Výška stavebního otvoru (H) [mm]","Clear opening height (H) [mm]","Höhe der Bauöffnung (H) [mm]","Wysokość otworu budowlanego (H) [mm]","Hauteur de la baie de construction (H) [mm]","Dagmaat hoogte (H) [mm]","Puhas avanemiskõrgus (H) [mm]","Oviaukon korkeus (H) [mm]"]
[{"$nulls":6},"Standard situation",null,"Standardní situace","Standard situation","Standardsituation","Sytuacja standardowa","Situation standard","Standaardsituatie","Standardne olukord","Vakiotilanne"]
[{"$nulls":6},"Non-standard situation",null,"Nestandardní situace","Non-standard situation","Ungewöhnliche Situation","Sytuacja niestandardowa","Situation hors de standard","Niet-standaardsituaties","Ebastandardne olukord","Epätyypillinen tilanne"]
[{"$nulls":6},"Panel assembly and design of door leaf is always considered based on FOH.",null,"Skladba panelů a design křídla je vždy řešen vůči FOH.","Panel assembly and design of door leaf is always considered based on FOH.","Die Paneelaufteilung und das Design des Torblattes wird immer auf der Basis von FOH-Mass gelöst.","Skład paneli i konstrukcja skrzydła jest zawsze rozpatrywane na podstawie FOH.","Assemblage de panneau et la conception de battant de porte est toujours considéré comme la base de FOH.","Paneel samenstelling en complete opbouw van het deurblad wordt altijd  gebaseerd op FOH.","Panel assembly and design of door leaf is always considered based on FOH.","Panel assembly and design of door leaf is always considered based on FOH."]
[{"$nulls":6},"Version:",null,"Verze:","Version:","Version:","Wersja:","VERSION:","Versie:","Versioon:","Versio:"]
[{"$nulls":6},"Sheet:",null,"Formát:","Sheet:","Format:","Format:","FORMAT:","Formaat:","Leht:","Koko:"]
[{"$nulls":6},"Position of socket, ca. 250 mm",null,"Pozice zásuvky, cca. 250 mm","Position of socket, ca. 250 mm","Die Position der Steckdose ca.250 mm","Położenie gniazda około 250 mm","La position de la prise électrique env. 250 mm","Positie van Eurostopcontact CEE, ca. 250mm","Pistikupesa asend, ca. 250 mm","Pistorasian sijainti, ca. 250 mm"]
[{"$nulls":6},"CEE 7/3 or CEE 7/5 socket",null,"Zásuvka typu CEE 7/3 nebo CEE 7/5","CEE 7/3 or CEE 7/5 socket","Steckdose CEE 7/3 oder CEE 7/5","Gniazdo CEE 7/3 lub CEE 7/5","Prise CEE 7/3 ou CEE 7/5","Eurostopcontact CEE 7/3 of CEE 7/5","CEE 7/3 või CEE 7/5 pistikupesa","CEE 7/3 või CEE 7/5 pistorasia"]
[{"$nulls":6},"230V, 50Hz, protect by 6 A (10 A) circuit breaker",null,"230V, 50Hz, jištěno 6 A (10 A) jističem","230V, 50Hz, protect by 6 A (10 A) circuit breaker","230V, 50Hz, Sicherung 6 A (10 A) mit Schutzschalter","230V, 50Hz, ochrona za pomocą bezpiecznika 6A (10A)","230V, 50Hz, assuré par un disjoncteur 6 A (10 A)","230V, 50Hz, afgezekerd met 6A (10A)","230V, 50Hz,kaitsta 6 A (10 A) kaitselülitiga","230V, 50Hz, 6 A (10 A) suojakytkimellä"]
[{"$nulls":6},"Opening width [mm]",null,"Šířka stavebního otvoru [mm]","Opening width [mm]","Lichte Breite [mm]","Szerokość otworu [mm]","Largeur de baie [mm]","Opening breedte ","Ava laius [mm]","Oviaukon leveys [mm]"]
[{"$nulls":6},"Opening width (W) [mm]",null,"Šířka stavebního otvoru (W) [mm]","Opening width (W) [mm]","Lichte Breite (W) [mm]","Szerokość otworu (W) [mm]","Largeur de baie (W) [mm]","Opening breedte (W) [mm]","Ava laius (W) [mm]","Oviaukon leveys (L) [mm]"]
[{"$nulls":6},"Operated",null,"Ovládání","Operated","Bedienung","Sterowanie","Commande","Bediening","Opereeritud","Käyttötapa"]
[{"$nulls":6},"manually",null,"ručně","manually","händisch","ręcznie wykonany","manuelle","handbediend","käsitsi","Käsikäyttöinen"]
[{"$nulls":6},"electrical ",null,"elektricky","electrical ","elektrisch","elektrycznie","motorisée","elektrisch","elektriliselt","Sähkökäyttöinen"]
[{"$nulls":6},"Height of lintel [mm]",null,"Výška nádpraží [mm]","Height of lintel [mm]","Freiraum über Sturz [mm]","Wysokość nadproża [mm]","Retombée de linteau [mm]","Hoogte van de latei [mm]","Silluse kõrgus [mm]","Kamanan korkeus [mm]"]
[{"$nulls":6},"Height of lintel (F) [mm]",null,"Výška nádpraží (F) [mm]","Height of lintel (F) [mm]","Freiraum über Sturz (F) [mm]","Wysokość nadproża (F) [mm]","Retombée de linteau (F) [mm]","Hoogte van de latei (F) [mm]","Silluse kõrgus (F) [mm]","Kamanan korkeus (F) [mm]"]
[{"$nulls":6},{"$f":"VLOOKUP($I43,$I:$T,G$2,FALSE)","v":"Type of motor"},null,"Typ pohonu","Type of motor","Der Typ des Antriebs","Rodzaj napędu","Type de motor","Type motor","Mootori tüüp","Avaajan malli"]
[{"$nulls":6},"Information regarding motor",null,"Informace o motoru","Information regarding motor","Die Information über den Antrieb","Informacje o napędu","Information concernant le moteur","Informatie betreffende de motor","Teave mootori kohta","Sähköistä avajaa koskevat tiedot"]
[{"$nulls":6},"Placement of top sealing",null,"Umístění horního těsnění","Placement of top sealing","Die Unterbringung der Oberdichtung","Umieszczenie górnego uszczelnienia","Emplacement du joint d'étanchéité","Plaatsing van de top afdichting","Ülemise tihendi paigaldamine","Ylätiivisteen sijoitus"]
[{"$nulls":6},"at lintel",null,"na překladu","at lintel","Auf dem Sturz ","Na nadprožu","au linteau","op de latei","sillusel","Kamanassa"]
[{"$nulls":6},"on the top section",null,"na horní sekci","on the top section","Auf der Obersektion","Na górnej częśći ","sur le panneau supérieur","boven op top paneel","ülemise sektsioonil","Ylälamellissa"]
[{"$nulls":6},"Version of SL track system",null,"Verze SL vedení","Version of SL track system","Version der SL-Umlenkung","SL wersja","SL version","Versie van SL beslagsysteem","SL siinisüsteemi versioon","SL nostotavan malli"]
[{"$nulls":6},"= set without pre-drilled holes in vertical angle; vertical angle in white color (RAL 9010)",null,"= sety bez předvrtaných otvorů ve svislém úhelníku; svislý úhelník v bílém provedení (RAL 9010)","= set without pre-drilled holes in vertical angle; vertical angle in white color (RAL 9010)","= Zargensätze ohne vorgeborte Löcher, Ausführung in RAL 9010","= zestawy bez wcześniej nawierconych otworów pod kątem pionowym, kąt pionowy w kolorze białym (RAL 9010)","= Le kit sans trou percé dans le cornier vertical, le cornier vertical en exécution blanc (RAL 9010)","= Set is zonder voorgeboorde gaten in verticale hoek; verticale hoek in kleur wit (RAL 9010)","= set without pre-drilled holes in vertical angle; vertical angle in white color (RAL 9010)","= set without pre-drilled holes in vertical angle; vertical angle in white color (RAL 9010)"]
[{"$nulls":6},"clear height could be decreased by accessories installed on inner side of door leaf (handgrip, reinforcing strut etc.)",null,"průjezdná výška může být snížena příslušenstvím nainstalovaným na vnitřní straně vratového křídla (madlo, výztuha apod.)","clear height could be decreased by accessories installed on inner side of door leaf (handgrip, reinforcing strut etc.)","Durchfahrtshöhe kann bei der Montage der Zubehörteile an die Innenseite des Torflügels reduziert werden (betrifft Handgriff, Versteifungen, etc.)","wysokość prześwitu może zostać zmniejszona dzięki akcesoriom zainstalowanym po wewnętrznej stronie skrzydła drzwi (uchwyt, wzmocnienie itp.)","L´ouverture de passage peut être réduite par les accessoires installés en intérieur du vantail de porte (les poignées, les renforts etc.)","De hoogte van de vrije ruimte kan worden verlaagd door accessoires die aan de binnenkant van het deurblad zijn gemonteerd (handgreep, verstevigingsprofielen, enz.)","puhaskõrgust saab vähendada ukselehe siseküljele paigaldatud tarvitute abil (käepide, tugevdustala jne)","Vapaan kulkuaukon korkeus voi väheentyä ovilehteen kinnitetyn lisävarustuksen takia (jäykistin, käsikahva jne.)"]
[{"$nulls":6},"when door stopper is used",null,"při použití zarážky vratového křídla","when door stopper is used","bei der Verwendung der Toorflügelsperre","przy użyciu ogranicznika skrzydła bramy","avec la butée pour ventail de porte","wanneer de deurstopper wordt gebruikt","ukselehe stopperi kasutamisel","Ovilehden stopparia käytettäessä"]
[{"$nulls":6},"Min. load capacity of ceiling/max. weight per hanging point: 100 kg",null,"Minimální únosnost stropu/maximální zatížení v každém kotevním bodě: 100 kg","Min. load capacity of ceiling/max. weight per hanging point: 100 kg","Minimale Tragfähigkeit der Decke/maximale Belastung in jedem einzelnen Befestigungspunkt: 100kg","Minimalne obciążenie sufitu / maksymalne obciążenie w każdym punkcie uchwycenia: 100 kg","Capacité min.de charge du plafond / capacité max.de charge des points d´ancre : 100kg","Minimaal draagvermogen van plafond/maximaal gewicht per bevestigingspunt: 100kg","Min. lae kandevõime/max kaal ühe riputuspunkti kohta: 100 kg","Katon min. kantavuus/ max paino per ripustuspiste: 100 kg."]
[{"$nulls":6},"Type of motor track",null,"Typ lišty pohonu","Type of motor track","Typ der Antriebsleiste","Typ szyny napędowej","Type de la glissière de propulsion","Type van de motorgeleidingsrail","Mootorisiini tüüp","Moottoripalkin tyyppi"]
[{"$nulls":6},"Motor track too short",null,"Lišta pohonu příliš krátká","Motor track too short","Antriebsleiste zu kurz","Drążek napędowy za krótki","Barre d'entraînement trop courte","Aandrijfstang te kort","Liiga lühike ajamiriba","Vetopalkki liian lyhyt"]

{"sheet":"Selections","index":2,"n_rows":99,"n_cols":20,"rows_kept":99,"hidden":true}
["Výběr jazyka",null,"LHF-C"]
["CZ",1]
["EN",2,{"$f":"Translation!C38","v":0},null,"Hloubka vedení",{"$nulls":3},{"$f":"Translation!C43","v":0},null,"Délka pohonu",null,null,"Kotvící bod pohonu",null,null,"Kotvící bod lišty"]
["DE",3]
["PL",4,{"$f":"Translation!C39","v":0},null,0,{"$f":"2575","v":2575},null,null,"Black",null,{"$f":"I5","v":"Black"},null,null,{"$f":"I5","v":"Black"},null,null,{"$f":"I5","v":"Black"}]
["FR",5,{"$f":"Translation!C40","v":0},null,2001,2700,null,null,"RUN 600",null,0,3540,null,0,3265,null,0,1400]
["NL",6,null,null,2126,2825,null,null,"Cube",null,2376,4240,null,2376,3975,null,3001]
["ET",7,null,null,2251,2950]
["FI",8,null,null,2376,3075,{"$nulls":4},{"$f":"I6","v":"RUN 600"},null,null,{"$f":"I6","v":"RUN 600"},null,null,{"$f":"I6","v":"RUN 600"}]
[null,9,null,null,2501,3325,{"$nulls":4},0,3100,null,0,2950,null,0,1400]
[null,10,null,null,2751,3575,{"$nulls":4},2126,4240,null,2126,4060,null,3001,0]
[null,11]
[{"$nulls":10},{"$f":"I7","v":"Cube"},null,null,{"$f":"I7","v":"Cube"},null,null,{"$f":"I7","v":"Cube"}]
[{"$nulls":10},0,3680,null,0,3480,null,0,1800]
["Výběr uložení",{"$nulls":9},2501,4160,null,2501,3960,null,2501,2050]
["Ano"]
["Ne"]
[null,null,"LHF-C-Ki"]
[]
[null,null,{"$f":"Translation!D38","v":0},null,"Hloubka vedení",{"$nulls":3},{"$f":"Translation!D43","v":0},null,"Délka pohonu",null,null,"Kotvící bod pohonu"]
[]
[null,null,{"$f":"Translation!D39","v":0},null,0,{"$f":"2575","v":2575},null,null,"D600",null,{"$f":"I22","v":"D600"},null,null,{"$f":"I22","v":"D600"}]
[null,null,{"$f":"Translation!D40","v":0},null,2001,2700,null,null,"D1000",null,{"$f":"N23","v":"F390119"},{"$f":"O23+(360/2)","v":2795},null,{"$f":"I27","v":"F390119"},2615]
[{"$nulls":4},2126,2825,{"$nulls":4},{"$f":"N24","v":"F390126"},{"$f":"O24+(360/2)","v":3362},null,{"$f":"I28","v":"F390126"},3182]
[{"$nulls":4},2251,2950,null,null,{"$f":"Translation!D53","v":0},null,"F390132",{"$f":"O25+(360/2)","v":3945},null,"F390132",3765]
[{"$nulls":4},2376,3075,null,null,"---",null,"F390139",{"$f":"O26+(360/2)","v":4545},null,"F390139",4365]
[{"$nulls":4},2501,3325,null,0,"F390119"]
[{"$nulls":4},2751,3575,null,2001,"F390126",null,{"$f":"I23","v":"D1000"},null,null,{"$f":"I23","v":"D1000"}]
[{"$nulls":7},2401,"F390132",null,{"$f":"N29","v":"F390119"},{"$f":"O29+(360/2)","v":2795},null,{"$f":"I27","v":"F390119"},2615]
[{"$nulls":7},3001,"F390139",null,{"$f":"N30","v":"F390126"},{"$f":"O30+(360/2)","v":3362},null,{"$f":"I28","v":"F390126"},3182]
[{"$nulls":10},"F390132",{"$f":"O31+(360/2)","v":3945},null,"F390132",3765]
[{"$nulls":10},"F390139",{"$f":"O32+(360/2)","v":4545},null,"F390139",4365]
[]
[null,null,"LHR-C"]
[]
[null,null,{"$f":"Translation!E38","v":0},null,"Hloubka vedení",{"$nulls":3},{"$f":"Translation!E43","v":0},null,"Délka pohonu",null,null,"Kotvící bod pohonu",null,null,"Kotvící bod lišty"]
[]
[null,null,{"$f":"Translation!E39","v":0},null,0,{"$f":"2575+120","v":2695},null,null,"Black",null,{"$f":"I38","v":"Black"},null,null,{"$f":"I38","v":"Black"},null,null,{"$f":"I38","v":"Black"}]
[null,null,{"$f":"Translation!E40","v":0},null,2001,{"$f":"2700+120","v":2820},null,null,"RUN 600",null,0,3540,null,0,3265,null,0,1400]
[{"$nulls":4},2126,{"$f":"2825+120","v":2945},null,null,"Cube",null,2376,4240,null,2376,3975,null,3001]
[null,null,"Umístění horního těsnění",null,2251,{"$f":"2950+120","v":3070},null,null,{"$f":"Translation!E42","v":0}]
[{"$nulls":4},2376,{"$f":"3075+120","v":3195},null,null,{"$f":"IF(H42=Selections!C38,90,IF(H42=Selections!C39,125,\"Error\"))","v":90},null,{"$f":"I39","v":"RUN 600"},null,null,{"$f":"I39","v":"RUN 600"},null,null,{"$f":"I39","v":"RUN 600"}]
[null,null,{"$f":"Translation!E46","v":0},null,2501,{"$f":"3325+120","v":3445},null,null,{"$f":"IF(H43=Selections!C43,0,IF(H43=Selections!C44,35,\"Error\"))","v":0},null,0,3100,null,0,2950,null,0,1400]
[null,null,{"$f":"Translation!E47","v":0},null,2751,{"$f":"3575+120","v":3695},{"$nulls":4},2126,4240,null,2126,4060,null,3001,0]
[]
[{"$nulls":10},{"$f":"I40","v":"Cube"},null,null,{"$f":"I40","v":"Cube"},null,null,{"$f":"I40","v":"Cube"}]
[{"$nulls":10},0,3680,null,0,3480,null,0,1800]
[{"$nulls":10},2501,4160,null,2126,3960,null,2501,2050]
[]
[null,null,"LHR-C-Ki"]
[]
[null,null,{"$f":"Translation!F38","v":0},null,"Hloubka vedení",{"$nulls":3},{"$f":"Translation!F43","v":0},null,"Délka pohonu",null,null,"Kotvící bod pohonu"]
[]
[null,null,{"$f":"Translation!F39","v":0},null,0,{"$f":"2575+120","v":2695},null,null,"D600",null,{"$f":"I54","v":"D600"},null,null,{"$f":"I54","v":"D600"}]
[null,null,{"$f":"Translation!F40","v":0},null,2001,{"$f":"2700+120","v":2820},null,null,"D1000",null,{"$f":"N55","v":"F390119"},{"$f":"O55+(360/2)","v":2795},null,{"$f":"I63","v":"F390119"},2615]
[{"$nulls":4},2126,{"$f":"2825+120","v":2945},{"$nulls":4},{"$f":"N56","v":"F390126"},{"$f":"O56+(360/2)","v":3362},null,{"$f":"I64","v":"F390126"},3182]
[null,null,"Umístění horního těsnění",null,2251,{"$f":"2950+120","v":3070},null,null,{"$f":"Translation!F42","v":0},null,"F390132",{"$f":"O57+(360/2)","v":3945},null,"F390132",3765]
[{"$nulls":4},2376,{"$f":"3075+120","v":3195},null,null,{"$f":"IF(H58=Selections!C54,90,IF(H58=Selections!C55,125,\"Error\"))","v":90},null,"F390139",{"$f":"O58+(360/2)","v":4545},null,"F390139",4365]
[null,null,{"$f":"Translation!F46","v":0},null,2501,{"$f":"3325+120","v":3445},null,null,{"$f":"IF(H59=Selections!C59,0,IF(H59=Selections!C60,35,\"Error\"))","v":0}]
[null,null,{"$f":"Translation!F47","v":0},null,2751,{"$f":"3575+120","v":3695},{"$nulls":4},{"$f":"I55","v":"D1000"},null,null,{"$f":"I55","v":"D1000"}]
[{"$nulls":8},{"$f":"Translation!F53","v":0},null,{"$f":"N61","v":"F390119"},{"$f":"O61+(360/2)","v":2795},null,{"$f":"I63","v":"F390119"},2615]
[{"$nulls":8},"---",null,{"$f":"N62","v":"F390126"},{"$f":"O62+(360/2)","v":3362},null,{"$f":"I64","v":"F390126"},3182]
[{"$nulls":7},0,"F390119",null,"F390132",{"$f":"O63+(360/2)","v":3945},null,"F390132",3765]
[{"$nulls":7},2001,"F390126",null,"F390139",{"$f":"O64+(360/2)","v":4545},null,"F390139",4365]
[{"$nulls":7},2401,"F390132"]
[{"$nulls":7},3001,"F390139"]
[]
[null,null,"GV-SL"]
[]
[null,null,{"$f":"Translation!G38","v":"Operated"},{"$nulls":5},{"$f":"Translation!G43","v":"Type of motor"},null,"Délka pohonu",null,null,"Kotvící bod pohonu",null,null,"Kotvící bod lišty",null,null,{"$f":"Translation!G48","v":"Version of SL track system"}]
[]
[null,null,{"$f":"Translation!G39","v":"manually"},{"$nulls":5},"Black",null,{"$f":"I72","v":"Black"},null,null,{"$f":"I72","v":"Black"},null,null,{"$f":"I72","v":"Black"},null,null,"SL 350"]
[null,null,{"$f":"Translation!G40","v":"electrical "},{"$nulls":5},"RUN 600",null,0,3540,null,0,3265,null,0,1400,null,"SL 420"]
[{"$nulls":8},"Cube",null,2376,4240,null,2376,3975,null,3001]
[]
[{"$nulls":10},{"$f":"I73","v":"RUN 600"},null,null,{"$f":"I73","v":"RUN 600"},null,null,{"$f":"I73","v":"RUN 600"}]
[{"$nulls":10},0,3100,null,0,2950,null,0,1400]
[{"$nulls":10},2126,4240,null,2126,4060,null,3001,0]
[]
[{"$nulls":10},{"$f":"I74","v":"Cube"},null,null,{"$f":"I74","v":"Cube"},null,null,{"$f":"I74","v":"Cube"}]
[{"$nulls":10},0,3680,null,0,3480,null,0,1800]
[{"$nulls":10},2501,4160,null,2126,3960,null,2501,2050]
[]
[null,null,"GV-SL-Ki"]
[]
[null,null,{"$f":"Translation!H38","v":0},{"$nulls":5},{"$f":"Translation!H43","v":0},null,"Délka pohonu",null,null,"Kotvící bod pohonu",null,null,{"$f":"Translation!H48","v":0}]
[]
[null,null,{"$f":"Translation!H39","v":0},{"$nulls":5},"D600",null,{"$f":"I88","v":"D600"},null,null,{"$f":"I88","v":"D600"},null,null,"SL 350"]
[null,null,{"$f":"Translation!H40","v":0},{"$nulls":5},"D1000",null,{"$f":"N89","v":"F390119"},{"$f":"O89+(360/2)","v":2795},null,{"$f":"I96","v":"F390119"},2615,null,"SL 420"]
[{"$nulls":10},{"$f":"N90","v":"F390126"},{"$f":"O90+(360/2)","v":3362},null,{"$f":"I97","v":"F390126"},3182]
[{"$nulls":10},"F390132",{"$f":"O91+(360/2)","v":3945},null,"F390132",3765]
[{"$nulls":10},"F390139",{"$f":"O92+(360/2)","v":4545},null,"F390139",4365]
[]
[{"$nulls":8},{"$f":"Translation!F80","v":0},null,{"$f":"I89","v":"D1000"},null,null,{"$f":"I89","v":"D1000"}]
[{"$nulls":8},"---",null,{"$f":"N95","v":"F390119"},{"$f":"O95+(360/2)","v":2795},null,{"$f":"I96","v":"F390119"},2615]
[{"$nulls":7},0,"F390119",null,{"$f":"N96","v":"F390126"},{"$f":"O96+(360/2)","v":3362},null,{"$f":"I97","v":"F390126"},3182]
[{"$nulls":7},2001,"F390126",null,"F390132",{"$f":"O97+(360/2)","v":3945},null,"F390132",3765]
[{"$nulls":7},2401,"F390132",null,"F390139",{"$f":"O98+(360/2)","v":4545},null,"F390139",4365]
[{"$nulls":7},3001,"F390139"]